Cogmind - Beta 15 @@@ ROGUE MODE // 2025.05.15 @ 16:02:03 Player: Kazimir57 Result: Destroyed by G-34 Mercenary with Small Laser Performance ------------- Evolutions (1) 500 Regions Visited (2) 400 Robots Destroyed (40) 200 Value Destroyed (1114) 1114 Prototype IDs (0) 0 Alien Tech Used (0) 0 Bonus (0) 0 TOTAL SCORE: 2214 Bonus ------- None Cogmind --------- Core Integrity 0/400 Matter 300/300 Energy 125/125 System Corruption 0% Temperature Cool (33) Movement Walking (400) Ox4 Location -9/Materials Parts ------- > --- POWER (1) -------- Light Ion Engine > --- PROPULSION (4) --- Aluminum Leg > --- UTILITY (2) ------ High-capacity Storage Unit Advanced Targeting Computer > --- WEAPON (2) ------- Small Laser Small Laser > --- INVENTORY (20) --- Light Ion Engine Faulty Heavy Ion Engine Aluminum Leg Aluminum Leg Aluminum Leg Aluminum Leg High-capacity Storage Unit Sensor Array Small Laser Peak State ------------ > --- POWER ------------ Ion Engine > --- PROPULSION ------- Light Treads Light Treads Light Treads Improved Treads > --- UTILITY ---------- High-capacity Storage Unit Visual Processing Unit > --- WEAPON ----------- Light Assault Rifle Mini Grenade Launcher > --- INVENTORY -------- Light Ion Engine Light Ion Engine Light Ion Engine Heavy Ion Engine Light Treads Aluminum Leg Aluminum Leg Aluminum Leg Aluminum Leg Aluminum Leg Aluminum Leg Aluminum Leg Aluminum Leg Aluminum Leg Aluminum Leg High-capacity Storage Unit Sensor Array Mini Grenade Launcher [Rating: 14] Favorites ----------- Power Ion Engine Engine Ion Engine Propulsion Light Treads Treads Light Treads Leg Aluminum Leg Wheel Compact Wheel Utility High-capacity Storage Unit Storage High-capacity Storage Unit Processor Visual Processing Unit Weapon Light Assault Rifle Energy Gun Small Laser Energy Cannon Light EM Pulse Cannon Ballistic Gun Light Assault Rifle Launcher Mini Grenade Launcher Build | -11 -10 -9 ------- Run | Yrd Mat Mat Slots Evolved 2 | . . 2 Power . | . . . Propulsion 2 | . . 2 Utility . | . . . Weapon . | . . . Parts Attached 37 | 7 7 23 Power 7 | 2 1 4 Engine 7 | 2 1 4 Core . | . . . Reactor . | . . . Propulsion 15 | 2 2 11 Treads 5 | . 2 3 Leg 8 | . . 8 Wheel 2 | 2 . . Hover . | . . . Flight . | . . . Utility 5 | 1 2 2 Device . | . . . Storage 3 | 1 1 1 Processor 2 | . 1 1 Hackware . | . . . Protection . | . . . Artifact . | . . . Weapon 10 | 2 2 6 Energy Gun 4 | 1 . 3 Energy Cannon 1 | . . 1 Ballistic Gun 3 | 1 2 . Ballistic Cannon . | . . . Launcher 2 | . . 2 Special Weapon . | . . . Impact Weapon . | . . . Slashing Weapon . | . . . Piercing Weapon . | . . . Special Melee Weapon . | . . . Unidentified Prototypes . | . . . Parts Lost 23 | . 3 20 Power 4 | . . 4 Propulsion 13 | . 1 12 Utility . | . . . Weapon 6 | . 2 4 Highest Loss Streak 8 | . 1 8 To Critical Strikes . | . . . Average Backups 12 | 3 12 12 Power 2 | . 2 2 Propulsion 7 | 2 7 7 Utility 1 | . 1 2 Weapon . | . 1 . Tool/Special . | . . . Unused Backups 9 | . 3 6 Power 2 | . 1 1 Propulsion 5 | . 1 4 Utility 1 | . . 1 Weapon 1 | . 1 . Tool/Special . | . . . Average Slot Usage (%) 90 | . 90 90 Engine 11 | . 14 9 Treads 18 | . 17 18 Leg 13 | . . 21 Wheel 3 | . 10 . Storage 12 | . 14 11 Processor 9 | . 7 11 Energy Gun 6 | . 6 5 Energy Cannon 1 | . . 2 Ballistic Gun 8 | . 18 2 Launcher 4 | . . 7 Peak Build Rating 14 | 6 9 14 Average Rating 10 | 4 7 11 On Entrance 5 | . 6 9 Naked Turns . | . . . Heaviest Build 53 | 13 53 48 Greatest Support 83 | 32 40 83 Greatest Overweight (x) 4 | . 3 4 Average Overweight (x) . | . . . Largest Inventory Capacity 20 | 8 20 20 Average Capacity 18 | 7 16 20 Most Carried 20 | 6 20 18 Average Carried 12 | 3 12 12 Final Capacity 20 | 8 20 20 Final Carried 18 | 6 18 9 Class Distribution -------------------- 65% | Mutant 34% | Scavenger-Mutant Dominant Class ---------------- Mutant | -10/Materials Scavenger-Mutant | -9/Materials Resources | -11 -10 -9 ----------- Run | Yrd Mat Mat Matter Collected 806 | 204 156 446 Remotely . | . . . Salvage Created 1182 | . 479 703 Parts 63 | . 25 38 Haulers Intercepted . | . . . Recyclers Shooed 2 | . . 2 Parts Field Recycled . | . . . Retrieved Matter . | . . . Parts Self-Destructed . | . . . Prevented . | . . . Kills | -11 -10 -9 ------- Run | Yrd Mat Mat Combat Hostiles Destroyed 34 | . 12 22 Melee 1 | . . 1 Guns 16 | . 11 5 Cannons 4 | . . 4 AOE 12 | . . 12 Classes Destroyed 8 | . 4 4 Worker 2 | . 1 1 Builder 1 | . . 1 Recycler 1 | . . 1 Watcher 2 | . 1 1 Swarmer 8 | . 3 5 Grunt 22 | . 9 13 Duelist 1 | . . 1 Sentry 3 | . . 3 Best Kill Streak 6 | . 5 6 Combat Bots Only 5 | . 5 5 Max Kills in Single Turn 4 | . 1 4 Gunslinging . | . . . Exploded 3 | . . 3 Melee 1 | . . 1 Uniques/NPCs Destroyed . | . . . Combat | -11 -10 -9 -------- Run | Yrd Mat Mat Hostile Shots Fired 382 | . 64 318 Missed 108 | . 21 87 Hits 274 | . 43 231 Melee 1 | . . 1 Projectile 273 | . 43 230 Critical Strikes 3 | . . 3 Part Disruptions 1 | . . 1 Damage Taken 3069 | . 546 2523 Core 500 | . 92 408 Absorbed by Shields . | . . . Regen/Repaired (Parts) 86 | . . 86 Core Remaining (%) 81 | 100 63 . Volleys Fired 124 | . 47 77 Largest 2 | . 2 2 Hottest 96 | . 70 96 Shots Fired 189 | . 81 108 Gun 143 | . 81 62 Cannon 19 | . . 19 Launcher 27 | . . 27 Special . | . . . Kinetic 59 | . 53 6 Thermal 84 | . 28 56 Explosive 27 | . . 27 Electromagnetic 19 | . . 19 Robot Hit Streak 23 | . 23 15 Robot Miss Streak 5 | . 5 3 Penetration Max . | . . . Secondary Targets 2 | . 2 . Max Gunslinging Chain 1 | . 1 . Shots Hit Robots 106 | . 48 58 Core Hits 63 | . 26 37 Critical Kills . | . . . Critical Parts Destroyed . | . . . Critical Strikes 3 | . 2 1 Burn 2 | . 2 . Corrupt 1 | . . 1 Melee Attacks . | . . . Impact . | . . . Slashing . | . . . Piercing . | . . . Sneak Attacks . | . . . Combat Hostiles . | . . . Follow-up Attacks . | . . . Damage Inflicted 2350 | . 507 1843 Guns 937 | . 507 430 Cannons 232 | . . 232 Explosions 1165 | . . 1165 Melee . | . . . Ramming 16 | . . 16 Kinetic 278 | . 245 33 Thermal 736 | . 262 474 Explosive 1088 | . . 1088 Electromagnetic 232 | . . 232 Impact . | . . . Slashing . | . . . Piercing . | . . . Highest Corruption . | . . . Average Corruption . | . . . Corruption Purged . | . . . Corruption Blocked . | . . . Overload Shots . | . . . Overflow Damage 126 | . . 126 Projectiles 11 | . . 11 Explosions 115 | . . 115 Melee . | . . . Knockbacks . | . . . Impact . | . . . Kinetic . | . . . Secondary . | . . . Self-Inflicted Damage 142 | . . 142 Shots 6 | . . 6 Rammed . | . . . Targets Rammed 5 | . . 5 Kicked 4 | . . 4 Crushed 1 | . . 1 Highest Temperature 159 | . 152 159 Average Temperature 46 | . 52 40 Received Heat Transfer 975 | . 240 735 Siege Activations . | . . . Martial Activations . | . . . Shielding Activations . | . . . Robots Disrupted . | . . . Combat Hostiles . | . . . Robots Corrupted . | . . . Combat Hostiles . | . . . Parts Fried 1 | . . 1 Impact Corruptions . | . . . Robots Melted 1 | . 1 . Combat Hostiles 1 | . 1 . Parts Melted 6 | . 3 3 Heat Transferred 1925 | . 925 1000 Parts Sabotaged . | . . . Parts Stolen . | . . . Parts Stripped . | . . . Power Chain Reactions 1 | . . 1 Alert | -11 -10 -9 ------- Run | Yrd Mat Mat Maximum Alert Level 1 | . . 1 Low Security (%) 68 | 100 100 49 Level 1 31 | . . 50 Level 2 . | . . . Level 3 . | . . . Level 4 . | . . . Level 5 . | . . . High Security . | . . . Max Security . | . . . Peak Influence 305 | . 142 305 Initial 29 | . . 29 Average 123 | . 70 161 Influence Increases 1116 | . 357 759 Destroy 0b10 Robot/C 680 | . 240 440 Destroy 0b10 Robot/NC 30 | . 10 20 Destroy Leader 164 | . 62 102 Trap Triggered on 0b10 10 | . . 10 Successful Hack 8 | . . 8 Disable Machine 30 | . . 30 Destroy Structure 119 | . . 119 Lose Combat Pursuer 75 | . 45 30 Influence Decreases 911 | . 286 625 Entered New Map 42 | . . 42 Time Decay 641 | . 256 385 Lost Part 228 | . 30 198 Squads Dispatched 7 | . 3 4 Investigation 2 | . . 2 Extermination . | . . . Reinforcement 5 | . 3 2 Assault . | . . . Garrison . | . . . Intercept . | . . . Searches Triggered . | . . . Construction Impeded . | . . . Haulers Reinforced . | . . . Active Scanning Responses . | . . . Cargo Convoy Interrupts . | . . . Stealth | -11 -10 -9 --------- Run | Yrd Mat Mat Distress Signals 6 | . 2 4 Communications Jammed . | . . . Distress Signals . | . . . Times Spotted 61 | . 21 40 Peak Tracking Total 8 | . 4 8 Tactical Retreats 3 | . 2 1 Traps | -11 -10 -9 ------- Run | Yrd Mat Mat Traps Triggered 3 | . 2 1 Indirectly . | . . . Trap Hack Attempts . | . . . Triggered . | . . . Disarmed . | . . . Reprogrammed 4 | . . 4 Reused 1 | . . 1 Traps Extracted . | . . . Installed . | . . . Triggered 1 | . . 1 Machines | -11 -10 -9 ---------- Run | Yrd Mat Mat Machines Disabled 2 | . . 2 Max in Single Turn 1 | . . 1 Machines Repaired . | . . . Machines Dismantled . | . . . Machines Sabotaged . | . . . Overloaded Fab Kills . | . . . Hacking | -11 -10 -9 --------- Run | Yrd Mat Mat Machines Accessed 3 | . . 3 Terminals 2 | . . 2 Fabricators . | . . . Repair Stations 1 | . . 1 Recycling Units . | . . . Scanalyzers . | . . . Garrison Access . | . . . Total Hacks 10 | . . 10 Successful 7 | . . 7 Failed 3 | . . 3 Catastrophic . | . . . Database Lockouts . | . . . Manual . | . . . Terminals 6 | . . 6 Fabricators . | . . . Repair Stations 4 | . . 4 Recycling Units . | . . . Scanalyzers . | . . . Garrison Access . | . . . Terminal Hacks 3 | . . 3 Locate Traps 1 | . . 1 Reprogram Traps 1 | . . 1 Zone Layout 1 | . . 1 Fabricator Hacks . | . . . Repair Station Hacks 4 | . . 4 Scan Component 2 | . . 2 Repair 2 | . . 2 Recycling Unit Hacks . | . . . Scanalyzer . | . . . Garrison Access Hacks . | . . . Unauthorized Hacks . | . . . Terminals . | . . . Fabricators . | . . . Repair Stations . | . . . Recycling Units . | . . . Scanalyzers . | . . . Garrison Access . | . . . Data Cores Recovered . | . . . Used . | . . . Hacking Detections 2 | . . 2 Full Trace Events 1 | . . 1 Feedback Events . | . . . Feedback Blocked . | . . . Robot Schematics Acquired . | . . . Robots Built . | . . . Authchips . | . . . Time . | . . . Total Robot Build Rating . | . . . Part Schematics Acquired . | . . . Parts Built . | . . . Authchips . | . . . Time . | . . . Total Part Build Rating . | . . . Parts Repaired 2 | . . 2 Time 58 | . . 58 Parts Recycled . | . . . Recycled Matter . | . . . Retrieved Matter . | . . . Retrieved Components . | . . . Parts Scanalyzed . | . . . Part Schematics Acquired . | . . . Parts Damaged . | . . . Bothacking | -11 -10 -9 ------------ Run | Yrd Mat Mat Used RIF Installer . | . . . Robots Hacked . | . . . Non-combat . | . . . Combat . | . . . Robot Hacks Applied . | . . . Relay Couplers Released . | . . . Fabnet Peak Effective % . | . . . Robots Rewired . | . . . Allies Hacked . | . . . Hacks Repelled . | . . . Allies | -11 -10 -9 -------- Run | Yrd Mat Mat Total Allies . | . . . Largest Group . | . . . Highest-Rated Group . | . . . Highest-Rated Ally . | . . . Total Orders . | . . . Ally Attacks . | . . . Total Damage . | . . . Kills . | . . . Allies Corrupted . | . . . Allies Melted . | . . . Intel | -11 -10 -9 ------- Run | Yrd Mat Mat Active Infowar (turns) 1017 | . 328 689 Optics 1017 | . 328 689 Robot Analysis Total . | . . . Derelict Logs Recovered . | . . . Drone Launches . | . . . Drone Recoveries . | . . . Exploration | -11 -10 -9 ------------- Run | Yrd Mat Mat Turns Passed 1834 | 69 632 1133 Spaces Moved 757 | 55 295 407 Core 2 | 2 . . Treads 320 | . 125 195 Legs 212 | . . 212 Wheels 223 | 53 170 . Hover . | . . . Flight . | . . . Fastest Speed 50 | 50 100 160 Average Speed 168 | 98 160 184 Slowest Speed 400 | 100 240 400 Overloaded Moves . | . . . Propulsion Burnouts . | . . . Robots Hopped . | . . . Potential Cave-ins . | . . . Cave-ins Triggered . | . . . Exploration Rate (%) 35 | 4 53 49 Regions Visited 2 Branch Regions . Pre-discovered Areas . | . . . Known Exits Taken . | . . . Unknown Exits Taken 2 | 1 1 . Scrap Searched . | . . . Spaces Dug 17 | . . 17 Terrain Destroyed 163 | . . 163 Melee . | . . . Projectile . | . . . AOE 163 | . . 163 Terrain Rammed . | . . . Walls Destroyed . | . . . Machines Disabled . | . . . Actions | -11 -10 -9 --------- Run | Yrd Mat Mat Total 1124 | 66 386 672 Wait 165 | . 14 151 Move 755 | 54 294 407 Hop . | . . . Pick Up 28 | 5 19 4 Fast Attach 16 | 6 2 8 Attach 17 | . 3 14 Detach . | . . . Swap 7 | 1 2 4 Drop 7 | . 5 2 Fire 124 | . 47 77 Melee . | . . . Ram . | . . . Kick 4 | . . 4 Crush 1 | . . 1 Escape Stasis . | . . . Rewire . | . . . Trap . | . . . Miscellaneous . | . . . Route ------- -11/Scrapyard -10/Materials (discovered 2 exits: *Mat / [*Min]) -9/Materials History --------- Turn | Location | Event 26 | -11/Scrapyard | Discovered new exit (range 15) 70 | -11/Scrapyard | Entered Materials 247 | -10/Materials | Discovered new exit (range 12) 328 | -10/Materials | Build established: Mutant 552 | -10/Materials | Discovered new exit (range 17) 702 | -10/Materials | Entered another Materials area 702 | -9/Materials | Evolved 2 slots: Propulsion x2 996 | -9/Materials | Repaired Mni. Grenade Launcher 1024 | -9/Materials | Repaired Ion Engine 1233 | -9/Materials | Core integrity fell below 50% 1271 | -9/Materials | Lost 8 parts (1p5n2w) 1556 | -9/Materials | Build established: Scavenger-Mutant 1633 | -9/Materials | Core integrity fell below 20% 1835 | -9/Materials | Destroyed by G-34 Mercenary with Small Laser Last Messages --------------- 01744_ Connecting with Terminal... 01756_ Critical hit (Burn: +37). 01756_ K-01 Serf destroyed. 01759_ Critical hit (Burn: +37). 01767_ Ion Engine destroyed. 01777_ Critical hit (Burn: +37). 01780_ Aluminum Leg destroyed. 01783_ Imp. Ion Engine melted. 01783_ Heat Sink melted. 01783_ Y-45 Defender destroyed. 01786_ K-01 Serf collects debris. 01790_ Acquired 1 matter. 01791_ K-01 Serf collects debris. 01795_ ALERT: Hostiles spotted, dispatching reinforcements to Terminal M007. 01796_ Acquired Lgt. Ion Engine. 01827_ Aluminum Leg destroyed. 01830_ Kicked G-34 Mercenary. 01830_ K-01 Serf destroyed. 01832_ Aluminum Leg destroyed. Map ----- +----------------------------------------------------+ | ?????????????????????????????????????????????????? | | ?????????????????????????????????????????????????? | | ?????????????????????????????????????????????????? | | ?????????????????????????????????????????????????? | | ?????????????????????????????????????????????????? | | ?????????????????????????????????????????????????? | | ?????????????????????????????????????????????????? | | ?????????????????????????????????????????????????? | | ?????????????????????????????????????????????????? | | ?????????????????????????????????????????????????? | | ?????????????????????????????????????????????????? | | ?????????????????????????????????????????????????? | | ?????????????????????????????????????????????????? | | ?????????????????????????????????????????????????? | | ?????????????????????????????????????????????????? | | ?????????????????????????????????????????????????? | | ?????????????????????????????????????????????????? | | ??????????????????????????????????"??????????????? | | ??????????????????????######????? """ ??????????? | | ?????????????????????##!!!!##???^ ??????????? | | ?????????????????????#! !#?? ??????????? | | ?????????????????????? #? ?????????? | | ??????????????????????# ## ?????????? | | ??????????????? ????# ????????? | | ?????????????? ????# ????????? | | ?????????????? ????# @g ????????? | | ??????????????# ????# g ????????? | | ??????????????# #???# ########### ????????? | | ??????????????# #???# #??????????????????????? | | ??????????????# #???# #??????????????????????? | | ??????????????# #???# w#??????????????????????? | | ??????????????# #???# #??????????????????????? | | ##????????????# #???# =%#??????????????????????? | | #??????? ????# #???# #??????????????????????? | | #?????###/#### #???# #??????????????????????? | | #?????# ^ #???# #??????????????????????? | | ####### ^ #???# #??????????????????????? | | + "" #???# #??????????????????????? | | ####### "" #???# #??????????????????????? | | ##?????# T" #???#Y ###????????????????????? | | ???????## "" ##### #????????????????????? | | ????????# "" % #????????????????????? | | ????????# % #????????????????????? | | ????????# = #????????????????????? | | ????????# ###### #????????????????????? | | ?????? #????## ##????????????????????? | | ???? #?????? #?????????????????????? | | ?? +?????? #?????????????????????? | | ? ##+#####+##?????? #?????????????????????? | | ######## ?????????????? #?????????????????????? | +----------------------------------------------------+ Best States ------------- Heat Dissipation 28 Energy Generation 10 Energy Capacity 250 Matter Stores 300 Matter Capacity 300 Sight Range 18 Terrain Scan Density 10 Evasion (%) 40 Targeting Accuracy 8 Recoil Reduction 4 Item Schematics ----------------- None Robot Schematics ------------------ None Fabricated ------------ Nothing Repaired ---------- Mni. Grenade Launcher | 36% | -9/Materials Ion Engine | 10% | -9/Materials Alien Tech Used ----------------- None Achievements -------------- None Challenges ------------ None Game ------ Seed LauncherIonicCrosscalibrator Manual? 0 Play Time 00:21:08 Cumulative 8.7 hours Start 2025.05.15 @ 15:41:53 End 2025.05.15 @ 16:02:03 Sessions 1 Manual Loads 0 Difficulty Rogue Special Mode None Game No. 19 Rogue 19 Adventurer 0 Explorer 0 Win Type - Total 0 Types 0/0/0/0/0/0/0/0/0/0 Lore% 5 Gallery% 14 Achievement% 14 Wizard Run 0 Options --------- Layout 1 ASCII 0 Keyboard 0 Movement Mouse Keybinds 0 Fullscreen 1 Font 24/Smallcaps Map View 50x35 Zoom Use 0% Tactical HUD 1 Map Filters NONE Filters NONE Steam 1 RUN: a7555393-d700-47fe-a473-4b01dd336ffe